[Event "Titled Tuesday Blitz December 13 Late 2022"]
[White "Donskov, Anatoly"]
[Black "Dias, Joao Batista"]
[WhiteFideId "24143413"]
[BlackFideId "2108240"]
[WhiteElo "2219"]
[BlackElo "1898"]
[Result "1-0"]
[Round "02"]
[TimeControl "180+1"]
[Date "2022.12.14"]
[WhiteClock "0:02:27"]
[BlackClock "0:00:43"]

1. d4 {[%clk 0:02:55]}  d5 {[%clk 0:02:59]} 2. Nf3 {[%clk 0:02:55]}  Nf6 {[%clk 0:02:59]} 3. Bf4 {[%clk 0:02:56]}  g6 {[%clk 0:02:58]} 4. Nc3 {[%clk 0:02:54]}  Bg7 {[%clk 0:02:56]} 5. Nb5 {[%clk 0:02:55]}  Na6 {[%clk 0:02:55]} 6. e3 {[%clk 0:02:55]}  c6 {[%clk 0:02:55]} 7. Nc3 {[%clk 0:02:53]}  Nc7 {[%clk 0:02:52]} 8. h3 {[%clk 0:02:53]}  O-O {[%clk 0:02:52]} 9. Be2 {[%clk 0:02:51]}  Re8 {[%clk 0:02:51]} 10. O-O {[%clk 0:02:51]}  Ne4 {[%clk 0:02:41]} 11. Nxe4 {[%clk 0:02:50]}  dxe4 {[%clk 0:02:41]} 12. Nd2 {[%clk 0:02:51]}  f5 {[%clk 0:02:38]} 13. Nc4 {[%clk 0:02:50]}  Kh8 {[%clk 0:02:36]} 14. Ne5 {[%clk 0:02:49]}  Rf8 {[%clk 0:02:33]} 15. Bh2 {[%clk 0:02:47]}  e6 {[%clk 0:02:31]} 16. c4 {[%clk 0:02:45]}  Ne8 {[%clk 0:02:24]} 17. b4 {[%clk 0:02:43]}  Nf6 {[%clk 0:02:23]} 18. a4 {[%clk 0:02:44]}  Bd7 {[%clk 0:02:19]} 19. b5 {[%clk 0:02:43]}  Be8 {[%clk 0:02:18]} 20. Qb3 {[%clk 0:02:42]}  Qe7 {[%clk 0:02:12]} 21. bxc6 {[%clk 0:02:42]}  bxc6 {[%clk 0:02:12]} 22. Rab1 {[%clk 0:02:42]}  a5 {[%clk 0:01:49]} 23. Qb7 {[%clk 0:02:40]}  Ra7 {[%clk 0:01:48]} 24. Qxe7 {[%clk 0:02:38]}  Rxe7 {[%clk 0:01:47]} 25. Rb6 {[%clk 0:02:38]}  Rc7 {[%clk 0:01:35]} 26. Rfb1 {[%clk 0:02:37]}  Nd7 {[%clk 0:01:04]} 27. Nxd7 {[%clk 0:02:35]}  Rxd7 {[%clk 0:01:02]} 28. c5 {[%clk 0:02:34]}  Ra7 {[%clk 0:00:54]} 29. Bc4 {[%clk 0:02:34]}  Bd7 {[%clk 0:00:52]} 30. Bd6 {[%clk 0:02:33]}  Rfa8 {[%clk 0:00:51]} 31. Rb8+ {[%clk 0:02:33]}  Be8 {[%clk 0:00:47]} 32. Bxe6 {[%clk 0:02:31]}  Bf6 {[%clk 0:00:44]} 33. Rxa8 {[%clk 0:02:26]}  Rxa8 {[%clk 0:00:43]} 34. Rb7 {[%clk 0:02:27]} 1-0


[Site "https://www.chess.com"]

[Event "Titled Tuesday Blitz December 13 Late 2022"]
[White "Dudzinski, Pawel"]
[Black "Zhu, Jiner"]
[WhiteFideId "1117890"]
[BlackFideId "8608059"]
[WhiteElo "2099"]
[BlackElo "2384"]
[Result "0-1"]
[Round "02"]
[TimeControl "180+1"]
[Date "2022.12.14"]
[WhiteClock "0:00:05"]
[BlackClock "0:00:16"]

1. e4 {[%clk 0:03:00]}  g6 {[%clk 0:02:56]} 2. c4 {[%clk 0:02:54]}  Bg7 {[%clk 0:02:56]} 3. Nc3 {[%clk 0:02:55]}  d6 {[%clk 0:02:56]} 4. g3 {[%clk 0:02:55]}  Nf6 {[%clk 0:02:55]} 5. Bg2 {[%clk 0:02:53]}  e5 {[%clk 0:02:55]} 6. Nge2 {[%clk 0:02:53]}  Nc6 {[%clk 0:02:52]} 7. d3 {[%clk 0:02:51]}  O-O {[%clk 0:02:52]} 8. O-O {[%clk 0:02:49]}  Be6 {[%clk 0:02:51]} 9. f4 {[%clk 0:02:44]}  exf4 {[%clk 0:02:47]} 10. Nxf4 {[%clk 0:02:41]}  Bd7 {[%clk 0:02:27]} 11. Nfd5 {[%clk 0:02:35]}  Nxd5 {[%clk 0:02:26]} 12. Nxd5 {[%clk 0:02:35]}  Nd4 {[%clk 0:02:25]} 13. Be3 {[%clk 0:02:30]}  c6 {[%clk 0:02:23]} 14. Nc3 {[%clk 0:02:30]}  Qe7 {[%clk 0:02:20]} 15. h3 {[%clk 0:02:30]}  h5 {[%clk 0:02:18]} 16. Ne2 {[%clk 0:02:23]}  Nxe2+ {[%clk 0:02:11]} 17. Qxe2 {[%clk 0:02:24]}  c5 {[%clk 0:02:11]} 18. Qd2 {[%clk 0:02:16]}  Bc6 {[%clk 0:02:06]} 19. Rae1 {[%clk 0:02:13]}  Qe5 {[%clk 0:01:47]} 20. Bf4 {[%clk 0:02:06]}  Qxb2 {[%clk 0:01:46]} 21. Qxb2 {[%clk 0:02:05]}  Bxb2 {[%clk 0:01:47]} 22. Bxd6 {[%clk 0:02:06]}  Bd4+ {[%clk 0:01:47]} 23. Kh2 {[%clk 0:02:04]}  Rfd8 {[%clk 0:01:47]} 24. Bf4 {[%clk 0:01:51]}  Bc3 {[%clk 0:01:42]} 25. Rd1 {[%clk 0:01:49]}  Ba4 {[%clk 0:01:40]} 26. Rb1 {[%clk 0:01:43]}  b6 {[%clk 0:01:35]} 27. Rf3 {[%clk 0:01:33]}  Rd7 {[%clk 0:01:28]} 28. Bf1 {[%clk 0:01:29]}  Re8 {[%clk 0:01:23]} 29. Rc1 {[%clk 0:01:24]}  Bb2 {[%clk 0:01:19]} 30. Rb1 {[%clk 0:01:23]}  Bg7 {[%clk 0:01:16]} 31. Rc1 {[%clk 0:01:21]}  Bc6 {[%clk 0:01:15]} 32. Rf2 {[%clk 0:01:20]}  Bd4 {[%clk 0:01:13]} 33. Re2 {[%clk 0:01:15]}  Kg7 {[%clk 0:01:09]} 34. Bd2 {[%clk 0:00:55]}  Be5 {[%clk 0:01:02]} 35. Rf2 {[%clk 0:00:46]}  Bd4 {[%clk 0:00:45]} 36. Bc3 {[%clk 0:00:45]}  Bxc3 {[%clk 0:00:40]} 37. Rxc3 {[%clk 0:00:46]}  Re5 {[%clk 0:00:39]} 38. Ra3 {[%clk 0:00:46]}  Rde7 {[%clk 0:00:38]} 39. Kg1 {[%clk 0:00:45]}  f5 {[%clk 0:00:35]} 40. exf5 {[%clk 0:00:45]}  gxf5 {[%clk 0:00:36]} 41. Bg2 {[%clk 0:00:41]}  Re1+ {[%clk 0:00:34]} 42. Rf1 {[%clk 0:00:37]}  Bxg2 {[%clk 0:00:29]} 43. Rxe1 {[%clk 0:00:35]}  Rxe1+ {[%clk 0:00:28]} 44. Kxg2 {[%clk 0:00:36]}  Re7 {[%clk 0:00:25]} 45. Kf3 {[%clk 0:00:35]}  Kf6 {[%clk 0:00:24]} 46. Kf4 {[%clk 0:00:31]}  Rd7 {[%clk 0:00:24]} 47. Ke3 {[%clk 0:00:19]}  Ke5 {[%clk 0:00:22]} 48. Rb3 {[%clk 0:00:19]}  Rg7 {[%clk 0:00:22]} 49. Kf3 {[%clk 0:00:20]}  Rf7 {[%clk 0:00:20]} 50. Rb1 {[%clk 0:00:18]}  Kd4 {[%clk 0:00:20]} 51. Rd1 {[%clk 0:00:18]}  Kc3 {[%clk 0:00:18]} 52. Kf4 {[%clk 0:00:18]}  Kc2 {[%clk 0:00:19]} 53. Re1 {[%clk 0:00:15]}  Kxd3 {[%clk 0:00:19]} 54. Re6 {[%clk 0:00:13]}  Kxc4 {[%clk 0:00:19]} 55. Rh6 {[%clk 0:00:13]}  Kd3 {[%clk 0:00:17]} 56. Rd6+ {[%clk 0:00:11]}  Kc3 {[%clk 0:00:17]} 57. Kg5 {[%clk 0:00:11]}  c4 {[%clk 0:00:16]} 58. Kxh5 {[%clk 0:00:11]}  Rh7+ {[%clk 0:00:16]} 59. Kg5 {[%clk 0:00:06]}  Rxh3 {[%clk 0:00:16]} 60. Kf4 {[%clk 0:00:05]}  Kb2 {[%clk 0:00:16]} 61. Rh6 {[%clk 0:00:05]}  Rxh6 {[%clk 0:00:16]} 0-1


[Site "https://www.chess.com"]

[Event "Titled Tuesday Blitz December 13 Late 2022"]
[White "Eisa Mohmood, Alkhoori"]
[Black "Reprintsev, Alexander"]
[WhiteFideId "9316116"]
[BlackFideId "14100541"]
[WhiteElo "1245"]
[BlackElo "2230"]
[Result "0-1"]
[Round "02"]
[TimeControl "180+1"]
[Date "2022.12.14"]
[WhiteClock "0:00:01"]
[BlackClock "0:00:30"]

1. e4 {[%clk 0:03:00]}  d5 {[%clk 0:02:59]} 2. exd5 {[%clk 0:03:00]}  Qxd5 {[%clk 0:02:59]} 3. Nc3 {[%clk 0:03:00]}  Qa5 {[%clk 0:02:59]} 4. d4 {[%clk 0:03:01]}  Nf6 {[%clk 0:02:59]} 5. Nf3 {[%clk 0:03:01]}  Nc6 {[%clk 0:02:59]} 6. d5 {[%clk 0:02:59]}  Nb4 {[%clk 0:02:58]} 7. Bc4 {[%clk 0:02:50]}  e6 {[%clk 0:02:57]} 8. dxe6 {[%clk 0:02:48]}  Bxe6 {[%clk 0:02:57]} 9. Bxe6 {[%clk 0:02:43]}  fxe6 {[%clk 0:02:58]} 10. Qe2 {[%clk 0:02:41]}  O-O-O {[%clk 0:02:54]} 11. O-O {[%clk 0:02:38]}  Qf5 {[%clk 0:02:47]} 12. Nb5 {[%clk 0:02:29]}  Bc5 {[%clk 0:02:38]} 13. Be3 {[%clk 0:02:24]}  Qxc2 {[%clk 0:02:21]} 14. Qxc2 {[%clk 0:02:14]}  Nxc2 {[%clk 0:02:22]} 15. Bxc5 {[%clk 0:02:06]}  Nxa1 {[%clk 0:02:22]} 16. Rxa1 {[%clk 0:01:59]}  Rd5 {[%clk 0:02:21]} 17. Nxa7+ {[%clk 0:01:38]}  Kb8 {[%clk 0:02:21]} 18. Be3 {[%clk 0:01:35]}  Rhd8 {[%clk 0:02:16]} 19. h3 {[%clk 0:01:26]}  Rd1+ {[%clk 0:02:16]} 20. Rxd1 {[%clk 0:01:26]}  Rxd1+ {[%clk 0:02:17]} 21. Kh2 {[%clk 0:01:27]}  c6 {[%clk 0:02:12]} 22. Ne5 {[%clk 0:01:22]}  Kc7 {[%clk 0:01:45]} 23. Nc4 {[%clk 0:00:53]}  Nd7 {[%clk 0:01:33]} 24. b4 {[%clk 0:00:45]}  e5 {[%clk 0:01:29]} 25. f4 {[%clk 0:00:37]}  exf4 {[%clk 0:01:18]} 26. Bxf4+ {[%clk 0:00:37]}  Kd8 {[%clk 0:01:17]} 27. Na5 {[%clk 0:00:31]}  Rd4 {[%clk 0:01:01]} 28. Nxb7+ {[%clk 0:00:25]}  Ke8 {[%clk 0:01:01]} 29. Nd6+ {[%clk 0:00:20]}  Kf8 {[%clk 0:01:01]} 30. Kg3 {[%clk 0:00:10]}  Rxb4 {[%clk 0:00:54]} 31. Nxc6 {[%clk 0:00:10]}  Ra4 {[%clk 0:00:55]} 32. Ne5 {[%clk 0:00:07]}  Nf6 {[%clk 0:00:54]} 33. Nf5 {[%clk 0:00:04]}  Nh5+ {[%clk 0:00:53]} 34. Kg4 {[%clk 0:00:01]}  Nxf4 {[%clk 0:00:54]} 35. Nd7+ {[%clk 0:00:01]}  Ke8 {[%clk 0:00:52]} 36. Nc5 {[%clk 0:00:02]}  Rc4 {[%clk 0:00:49]} 37. Nd6+ {[%clk 0:00:02]}  Ke7 {[%clk 0:00:49]} 38. Nxc4 {[%clk 0:00:03]}  Nxg2 {[%clk 0:00:50]} 39. Kg3 {[%clk 0:00:03]}  Ne1 {[%clk 0:00:49]} 40. Kf2 {[%clk 0:00:04]}  Nc2 {[%clk 0:00:50]} 41. Ne5 {[%clk 0:00:03]}  Kd6 {[%clk 0:00:49]} 42. Ned3 {[%clk 0:00:03]}  Kd5 {[%clk 0:00:49]} 43. Nd7 {[%clk 0:00:03]}  g5 {[%clk 0:00:46]} 44. Nf6+ {[%clk 0:00:03]}  Kd4 {[%clk 0:00:45]} 45. Ke2 {[%clk 0:00:03]}  h6 {[%clk 0:00:44]} 46. a4 {[%clk 0:00:04]}  Kc4 {[%clk 0:00:41]} 47. Ng8 {[%clk 0:00:04]}  h5 {[%clk 0:00:40]} 48. Nf6 {[%clk 0:00:04]}  Nd4+ {[%clk 0:00:40]} 49. Ke3 {[%clk 0:00:02]}  Nf5+ {[%clk 0:00:40]} 50. Ke4 {[%clk 0:00:03]}  Nd6+ {[%clk 0:00:40]} 51. Ke5 {[%clk 0:00:04]}  Nf7+ {[%clk 0:00:39]} 52. Ke6 {[%clk 0:00:04]}  Nd8+ {[%clk 0:00:39]} 53. Kd7 {[%clk 0:00:05]}  Nb7 {[%clk 0:00:37]} 54. Ne5+ {[%clk 0:00:05]}  Kb4 {[%clk 0:00:36]} 55. Nxh5 {[%clk 0:00:05]}  Kxa4 {[%clk 0:00:34]} 56. Nd3 {[%clk 0:00:03]}  Kb5 {[%clk 0:00:33]} 57. Ke6 {[%clk 0:00:03]}  Kc4 {[%clk 0:00:33]} 58. Ne5+ {[%clk 0:00:03]}  Kd4 {[%clk 0:00:32]} 59. Kf5 {[%clk 0:00:03]}  Nd6+ {[%clk 0:00:31]} 60. Ke6 {[%clk 0:00:02]}  Ne4 {[%clk 0:00:30]} 61. Nf3+ {[%clk 0:00:01]}  Ke3 {[%clk 0:00:30]} 0-1


[Site "https://www.chess.com"]

[Event "Titled Tuesday Blitz December 13 Late 2022"]
[White "Fedoseev, Vladimir"]
[Black "Bernabeu Lopez, Carlos Javier"]
[WhiteFideId "24130737"]
[BlackFideId "2235366"]
[WhiteElo "2733"]
[BlackElo "2324"]
[Result "1-0"]
[Round "02"]
[TimeControl "180+1"]
[Date "2022.12.13"]
[WhiteClock "0:02:09"]
[BlackClock "0:01:33"]

1. e4 {[%clk 0:03:00]}  e5 {[%clk 0:02:59]} 2. Nf3 {[%clk 0:03:01]}  Nf6 {[%clk 0:03:00]} 3. Nxe5 {[%clk 0:02:59]}  Nxe4 {[%clk 0:03:00]} 4. Qe2 {[%clk 0:02:58]}  Qe7 {[%clk 0:03:00]} 5. Qxe4 {[%clk 0:02:58]}  d6 {[%clk 0:03:01]} 6. f4 {[%clk 0:02:54]}  f5 {[%clk 0:02:58]} 7. Qa4+ {[%clk 0:02:51]}  Bd7 {[%clk 0:02:32]} 8. Qb3 {[%clk 0:02:50]}  dxe5 {[%clk 0:02:23]} 9. Qxb7 {[%clk 0:02:49]}  exf4+ {[%clk 0:02:24]} 10. Kd1 {[%clk 0:02:49]}  Bc6 {[%clk 0:02:22]} 11. Bb5 {[%clk 0:02:48]}  Qd7 {[%clk 0:02:08]} 12. Re1+ {[%clk 0:02:47]}  Kf7 {[%clk 0:02:07]} 13. Bxc6 {[%clk 0:02:23]}  Qxc6 {[%clk 0:02:06]} 14. Qb3+ {[%clk 0:02:23]}  Kf6 {[%clk 0:02:05]} 15. Nc3 {[%clk 0:02:22]}  Nd7 {[%clk 0:01:50]} 16. Nd5+ {[%clk 0:02:19]}  Kg5 {[%clk 0:01:47]} 17. d4 {[%clk 0:02:16]}  Bd6 {[%clk 0:01:41]} 18. Qg3+ {[%clk 0:02:15]}  Kh6 {[%clk 0:01:38]} 19. Bxf4+ {[%clk 0:02:14]}  Bxf4 {[%clk 0:01:36]} 20. Qh4+ {[%clk 0:02:13]}  Kg6 {[%clk 0:01:33]} 21. Ne7+ {[%clk 0:02:09]} 1-0


[Site "https://www.chess.com"]

[Event "Titled Tuesday Blitz December 13 Late 2022"]
[White "Galchenko, Matvey"]
[Black "Taboas Rodriguez, Daniel"]
[WhiteFideId "24175480"]
[BlackFideId "2208466"]
[WhiteElo "2850"]
[BlackElo "2579"]
[Result "0-1"]
[Round "02"]
[TimeControl "180+1"]
[Date "2022.12.14"]
[WhiteClock "0:00:54"]
[BlackClock "0:01:05"]

1. e4 {[%clk 0:03:00]}  e5 {[%clk 0:02:59]} 2. Nf3 {[%clk 0:02:55]}  Nc6 {[%clk 0:02:59]} 3. d4 {[%clk 0:02:55]}  exd4 {[%clk 0:02:59]} 4. Nxd4 {[%clk 0:02:56]}  Nf6 {[%clk 0:02:59]} 5. Nxc6 {[%clk 0:02:56]}  bxc6 {[%clk 0:02:58]} 6. e5 {[%clk 0:02:56]}  Qe7 {[%clk 0:02:57]} 7. Qe2 {[%clk 0:02:56]}  Nd5 {[%clk 0:02:58]} 8. h4 {[%clk 0:02:57]}  d6 {[%clk 0:02:54]} 9. c4 {[%clk 0:02:54]}  Nb4 {[%clk 0:02:49]} 10. Na3 {[%clk 0:02:19]}  Qxe5 {[%clk 0:02:46]} 11. Be3 {[%clk 0:02:07]}  Bf5 {[%clk 0:02:41]} 12. Qd2 {[%clk 0:02:07]}  d5 {[%clk 0:02:26]} 13. Be2 {[%clk 0:02:07]}  Be7 {[%clk 0:02:09]} 14. O-O {[%clk 0:01:48]}  O-O {[%clk 0:02:07]} 15. Rfe1 {[%clk 0:01:42]}  a5 {[%clk 0:02:01]} 16. Bf4 {[%clk 0:01:35]}  Qf6 {[%clk 0:01:48]} 17. Bg5 {[%clk 0:01:26]}  Qd6 {[%clk 0:01:47]} 18. Bf3 {[%clk 0:01:12]}  Bxg5 {[%clk 0:01:45]} 19. Qxg5 {[%clk 0:01:13]}  Qg6 {[%clk 0:01:38]} 20. Qe7 {[%clk 0:01:07]}  Qd6 {[%clk 0:01:28]} 21. c5 {[%clk 0:01:02]}  Qxe7 {[%clk 0:01:26]} 22. Rxe7 {[%clk 0:01:03]}  Rfc8 {[%clk 0:01:18]} 23. g4 {[%clk 0:01:03]}  Be6 {[%clk 0:01:17]} 24. Re1 {[%clk 0:00:57]}  Kf8 {[%clk 0:01:16]} 25. R1xe6 {[%clk 0:00:57]}  fxe6 {[%clk 0:01:15]} 26. Rxe6 {[%clk 0:00:58]}  Re8 {[%clk 0:01:11]} 27. Rxc6 {[%clk 0:00:54]}  Nxc6 {[%clk 0:01:10]} 28. Bxd5 {[%clk 0:00:54]}  Nb4 {[%clk 0:01:05]} 0-1


[Site "https://www.chess.com"]

[Event "Titled Tuesday Blitz December 13 Late 2022"]
[White "Gardezi, Arsal"]
[Black "Garcia, Gabriel Gonzaga"]
[WhiteFideId "30949521"]
[BlackFideId "2138956"]
[WhiteElo "1906"]
[BlackElo "2240"]
[Result "1-0"]
[Round "02"]
[TimeControl "180+1"]
[Date "2022.12.14"]
[WhiteClock "0:01:28"]
[BlackClock "0:02:20"]

1. Nf3 {[%clk 0:02:55]}  b6 {[%clk 0:02:59]} 2. g3 {[%clk 0:02:54]}  Bb7 {[%clk 0:03:00]} 3. Bg2 {[%clk 0:02:55]}  Nf6 {[%clk 0:03:01]} 4. O-O {[%clk 0:02:56]}  g6 {[%clk 0:03:02]} 5. d3 {[%clk 0:02:56]}  Bg7 {[%clk 0:03:02]} 6. Nbd2 {[%clk 0:02:57]}  d5 {[%clk 0:03:03]} 7. Re1 {[%clk 0:02:57]}  d4 {[%clk 0:03:00]} 8. c3 {[%clk 0:02:52]}  c5 {[%clk 0:03:00]} 9. e4 {[%clk 0:02:50]}  dxe3 {[%clk 0:02:59]} 10. Rxe3 {[%clk 0:02:50]}  O-O {[%clk 0:02:59]} 11. d4 {[%clk 0:02:24]}  cxd4 {[%clk 0:02:59]} 12. cxd4 {[%clk 0:02:22]}  Nc6 {[%clk 0:02:56]} 13. Nb3 {[%clk 0:02:21]}  Nd5 {[%clk 0:02:52]} 14. Re1 {[%clk 0:02:19]}  Rc8 {[%clk 0:02:51]} 15. Bg5 {[%clk 0:02:12]}  h6 {[%clk 0:02:50]} 16. Bd2 {[%clk 0:02:12]}  Ncb4 {[%clk 0:02:44]} 17. Rc1 {[%clk 0:01:54]}  Nd3 {[%clk 0:02:41]} 18. Rxc8 {[%clk 0:01:53]}  Qxc8 {[%clk 0:02:42]} 19. Re3 {[%clk 0:01:50]}  Nxe3 {[%clk 0:02:41]} 20. Bxe3 {[%clk 0:01:49]}  Nxb2 {[%clk 0:02:41]} 21. Qd2 {[%clk 0:01:47]}  Nc4 {[%clk 0:02:40]} 22. Qe2 {[%clk 0:01:47]}  Nxe3 {[%clk 0:02:40]} 23. Qxe3 {[%clk 0:01:47]}  Qc2 {[%clk 0:02:38]} 24. Bf1 {[%clk 0:01:43]}  Qxa2 {[%clk 0:02:35]} 25. Nfd2 {[%clk 0:01:40]}  Bd5 {[%clk 0:02:30]} 26. Nc1 {[%clk 0:01:37]}  Rc8 {[%clk 0:02:29]} 27. Nxa2 {[%clk 0:01:37]}  Bxa2 {[%clk 0:02:27]} 28. Qxe7 {[%clk 0:01:31]}  Rc1 {[%clk 0:02:20]} 29. Qxa7 {[%clk 0:01:29]}  Bxd4 {[%clk 0:02:20]} 30. Qxa2 {[%clk 0:01:28]} 1-0


[Site "https://www.chess.com"]

[Event "Titled Tuesday Blitz December 13 Late 2022"]
[White "Gasparyan, David"]
[Black "Klukin, Kirill"]
[WhiteFideId "13311980"]
[BlackFideId "24199273"]
[WhiteElo "2403"]
[BlackElo "2300"]
[Result "1/2-1/2"]
[Round "02"]
[TimeControl "180+1"]
[Date "2022.12.14"]
[WhiteClock "0:00:18"]
[BlackClock "0:00:15"]

1. e4 {[%clk 0:03:00]}  c5 {[%clk 0:02:56]} 2. Nc3 {[%clk 0:02:57]}  Nc6 {[%clk 0:02:55]} 3. Bb5 {[%clk 0:02:57]}  Nd4 {[%clk 0:02:55]} 4. Nf3 {[%clk 0:02:58]}  a6 {[%clk 0:02:55]} 5. Bd3 {[%clk 0:02:57]}  e6 {[%clk 0:02:55]} 6. O-O {[%clk 0:02:57]}  Ne7 {[%clk 0:02:54]} 7. b4 {[%clk 0:02:54]}  cxb4 {[%clk 0:02:45]} 8. Nxd4 {[%clk 0:02:52]}  bxc3 {[%clk 0:02:45]} 9. dxc3 {[%clk 0:02:53]}  Nc6 {[%clk 0:02:46]} 10. a4 {[%clk 0:02:49]}  Be7 {[%clk 0:02:44]} 11. Bb2 {[%clk 0:02:49]}  O-O {[%clk 0:02:44]} 12. Kh1 {[%clk 0:02:48]}  Qc7 {[%clk 0:02:43]} 13. f4 {[%clk 0:02:43]}  Na5 {[%clk 0:02:42]} 14. Qe2 {[%clk 0:02:43]}  d6 {[%clk 0:02:36]} 15. e5 {[%clk 0:02:42]}  g6 {[%clk 0:02:31]} 16. c4 {[%clk 0:02:27]}  Bd7 {[%clk 0:02:23]} 17. f5 {[%clk 0:02:10]}  dxe5 {[%clk 0:02:11]} 18. fxg6 {[%clk 0:02:07]}  hxg6 {[%clk 0:02:07]} 19. Nf3 {[%clk 0:02:03]}  Bf6 {[%clk 0:01:47]} 20. Nxe5 {[%clk 0:01:34]}  Bg7 {[%clk 0:01:46]} 21. Rab1 {[%clk 0:01:17]}  Nc6 {[%clk 0:01:42]} 22. Ng4 {[%clk 0:01:10]}  f5 {[%clk 0:01:39]} 23. Ne3 {[%clk 0:00:53]}  e5 {[%clk 0:01:30]} 24. Nd5 {[%clk 0:00:53]}  Qd6 {[%clk 0:01:27]} 25. Rbd1 {[%clk 0:00:45]}  Rad8 {[%clk 0:01:16]} 26. Qd2 {[%clk 0:00:34]}  Be6 {[%clk 0:01:09]} 27. Qc3 {[%clk 0:00:33]}  Nd4 {[%clk 0:01:07]} 28. Ba3 {[%clk 0:00:33]}  Qd7 {[%clk 0:00:54]} 29. Bxf8 {[%clk 0:00:33]}  Rxf8 {[%clk 0:00:55]} 30. Qb4 {[%clk 0:00:27]}  Nc6 {[%clk 0:00:51]} 31. Qc5 {[%clk 0:00:25]}  Qf7 {[%clk 0:00:45]} 32. Be2 {[%clk 0:00:20]}  e4 {[%clk 0:00:40]} 33. Nf4 {[%clk 0:00:17]}  Be5 {[%clk 0:00:29]} 34. Nxe6 {[%clk 0:00:17]}  Qxe6 {[%clk 0:00:30]} 35. Qd5 {[%clk 0:00:17]}  Kf7 {[%clk 0:00:26]} 36. Qd7+ {[%clk 0:00:15]}  Qe7 {[%clk 0:00:21]} 37. c5 {[%clk 0:00:14]}  Rd8 {[%clk 0:00:18]} 38. Bc4+ {[%clk 0:00:15]}  Kf6 {[%clk 0:00:18]} 39. Qxe7+ {[%clk 0:00:15]}  Kxe7 {[%clk 0:00:19]} 40. Rxd8 {[%clk 0:00:15]}  Nxd8 {[%clk 0:00:20]} 41. Rd1 {[%clk 0:00:15]}  Ne6 {[%clk 0:00:17]} 42. c6 {[%clk 0:00:16]}  bxc6 {[%clk 0:00:14]} 43. Bxe6 {[%clk 0:00:13]}  Kxe6 {[%clk 0:00:14]} 44. Rb1 {[%clk 0:00:13]}  Bd4 {[%clk 0:00:14]} 45. Rb7 {[%clk 0:00:13]}  f4 {[%clk 0:00:14]} 46. g3 {[%clk 0:00:10]}  g5 {[%clk 0:00:14]} 47. gxf4 {[%clk 0:00:11]}  gxf4 {[%clk 0:00:15]} 48. Kg2 {[%clk 0:00:11]}  f3+ {[%clk 0:00:15]} 49. Kg3 {[%clk 0:00:11]}  Kd5 {[%clk 0:00:15]} 50. Rd7+ {[%clk 0:00:11]}  Kc4 {[%clk 0:00:15]} 51. Re7 {[%clk 0:00:11]}  Kd5 {[%clk 0:00:13]} 52. c4+ {[%clk 0:00:12]}  Kxc4 {[%clk 0:00:10]} 53. Rxe4 {[%clk 0:00:13]}  f2 {[%clk 0:00:10]} 54. Kg2 {[%clk 0:00:13]}  Kd3 {[%clk 0:00:10]} 55. Re8 {[%clk 0:00:13]}  c5 {[%clk 0:00:11]} 56. h4 {[%clk 0:00:13]}  c4 {[%clk 0:00:11]} 57. h5 {[%clk 0:00:14]}  c3 {[%clk 0:00:12]} 58. h6 {[%clk 0:00:14]}  c2 {[%clk 0:00:12]} 59. Rc8 {[%clk 0:00:14]}  Bc3 {[%clk 0:00:11]} 60. Rxc3+ {[%clk 0:00:14]}  Kxc3 {[%clk 0:00:11]} 61. h7 {[%clk 0:00:15]}  c1=Q {[%clk 0:00:12]} 62. h8=Q+ {[%clk 0:00:16]}  Kb4 {[%clk 0:00:12]} 63. Qd4+ {[%clk 0:00:16]}  Qc4 {[%clk 0:00:12]} 64. Qb2+ {[%clk 0:00:15]}  Kxa4 {[%clk 0:00:12]} 65. Kxf2 {[%clk 0:00:16]}  Qc5+ {[%clk 0:00:12]} 66. Ke1 {[%clk 0:00:14]}  Qd5 {[%clk 0:00:07]} 67. Qc2+ {[%clk 0:00:14]}  Kb4 {[%clk 0:00:07]} 68. Qb2+ {[%clk 0:00:14]}  Kc5 {[%clk 0:00:07]} 69. Qc3+ {[%clk 0:00:14]}  Kb5 {[%clk 0:00:07]} 70. Qb2+ {[%clk 0:00:14]}  Kc6 {[%clk 0:00:08]} 71. Qc3+ {[%clk 0:00:14]}  Kb7 {[%clk 0:00:07]} 72. Qb4+ {[%clk 0:00:14]}  Kc7 {[%clk 0:00:07]} 73. Qc3+ {[%clk 0:00:14]}  Kd7 {[%clk 0:00:07]} 74. Qh3+ {[%clk 0:00:14]}  Kc6 {[%clk 0:00:08]} 75. Qc3+ {[%clk 0:00:14]}  Kb5 {[%clk 0:00:08]} 76. Qb2+ {[%clk 0:00:14]}  Ka4 {[%clk 0:00:09]} 77. Qa1+ {[%clk 0:00:15]}  Kb3 {[%clk 0:00:09]} 78. Qb1+ {[%clk 0:00:15]}  Kc3 {[%clk 0:00:09]} 79. Qc1+ {[%clk 0:00:15]}  Kb4 {[%clk 0:00:09]} 80. Qb2+ {[%clk 0:00:15]}  Qb3 {[%clk 0:00:10]} 81. Qd4+ {[%clk 0:00:15]}  Ka3 {[%clk 0:00:10]} 82. Qc5+ {[%clk 0:00:15]}  Qb4+ {[%clk 0:00:10]} 83. Qxb4+ {[%clk 0:00:15]}  Kxb4 {[%clk 0:00:11]} 84. Kd1 {[%clk 0:00:15]}  Kb3 {[%clk 0:00:11]} 85. Kc1 {[%clk 0:00:16]}  Ka2 {[%clk 0:00:12]} 86. Kc2 {[%clk 0:00:16]}  a5 {[%clk 0:00:12]} 87. Kc1 {[%clk 0:00:16]}  a4 {[%clk 0:00:12]} 88. Kc2 {[%clk 0:00:17]}  a3 {[%clk 0:00:12]} 89. Kc1 {[%clk 0:00:17]}  Kb3 {[%clk 0:00:13]} 90. Kb1 {[%clk 0:00:18]}  a2+ {[%clk 0:00:14]} 91. Ka1 {[%clk 0:00:18]}  Ka3 {[%clk 0:00:15]} 1/2-1/2


[Site "https://www.chess.com"]

[Event "Titled Tuesday Blitz December 13 Late 2022"]
[White "Goltsev, Dmitry"]
[Black "Itkis, Boris"]
[WhiteFideId "24176710"]
[BlackFideId "1209167"]
[WhiteElo "2327"]
[BlackElo "2216"]
[Result "1-0"]
[Round "02"]
[TimeControl "180+1"]
[Date "2022.12.14"]
[WhiteClock "0:01:30"]
[BlackClock "0:00:05"]

1. e4 {[%clk 0:03:00]}  e5 {[%clk 0:02:59]} 2. Nf3 {[%clk 0:02:59]}  Nc6 {[%clk 0:03:00]} 3. Bb5 {[%clk 0:02:58]}  a6 {[%clk 0:03:00]} 4. Ba4 {[%clk 0:02:58]}  d6 {[%clk 0:03:01]} 5. O-O {[%clk 0:02:57]}  Bd7 {[%clk 0:03:00]} 6. c3 {[%clk 0:02:57]}  Nge7 {[%clk 0:03:00]} 7. d4 {[%clk 0:02:58]}  Ng6 {[%clk 0:03:00]} 8. dxe5 {[%clk 0:02:57]}  dxe5 {[%clk 0:02:59]} 9. Nbd2 {[%clk 0:02:52]}  Bc5 {[%clk 0:02:57]} 10. Bc2 {[%clk 0:02:50]}  O-O {[%clk 0:02:56]} 11. Nc4 {[%clk 0:02:50]}  Qe7 {[%clk 0:02:42]} 12. Ne3 {[%clk 0:02:49]}  Rfd8 {[%clk 0:02:38]} 13. Nd5 {[%clk 0:02:49]}  Qd6 {[%clk 0:02:30]} 14. Bg5 {[%clk 0:02:48]}  f6 {[%clk 0:02:30]} 15. Bd2 {[%clk 0:02:43]}  Be6 {[%clk 0:02:26]} 16. b4 {[%clk 0:02:40]}  Ba7 {[%clk 0:02:23]} 17. Qe2 {[%clk 0:02:40]}  Nce7 {[%clk 0:02:09]} 18. c4 {[%clk 0:02:37]}  c6 {[%clk 0:01:49]} 19. c5 {[%clk 0:02:31]}  Qd7 {[%clk 0:01:49]} 20. Nb6 {[%clk 0:02:18]}  Bxb6 {[%clk 0:01:49]} 21. cxb6 {[%clk 0:02:19]}  Bg4 {[%clk 0:01:49]} 22. Be3 {[%clk 0:02:17]}  Nh4 {[%clk 0:01:34]} 23. Rfd1 {[%clk 0:02:16]}  Bxf3 {[%clk 0:01:08]} 24. Qc4+ {[%clk 0:02:15]}  Nd5 {[%clk 0:01:08]} 25. exd5 {[%clk 0:02:15]}  cxd5 {[%clk 0:00:50]} 26. Qxh4 {[%clk 0:02:13]}  Bxd1 {[%clk 0:00:50]} 27. Rxd1 {[%clk 0:02:14]}  g5 {[%clk 0:00:34]} 28. Qg3 {[%clk 0:02:07]}  d4 {[%clk 0:00:32]} 29. Bd2 {[%clk 0:02:03]}  Qc6 {[%clk 0:00:32]} 30. Bb3+ {[%clk 0:02:01]}  Kh8 {[%clk 0:00:33]} 31. Bxg5 {[%clk 0:01:56]}  Rg8 {[%clk 0:00:26]} 32. Bxg8 {[%clk 0:01:55]}  Rxg8 {[%clk 0:00:27]} 33. h4 {[%clk 0:01:49]}  Qe6 {[%clk 0:00:18]} 34. Re1 {[%clk 0:01:43]}  fxg5 {[%clk 0:00:18]} 35. Rxe5 {[%clk 0:01:42]}  gxh4 {[%clk 0:00:09]} 36. Qf4 {[%clk 0:01:35]}  Qxb6 {[%clk 0:00:08]} 37. Re7 {[%clk 0:01:32]}  h3 {[%clk 0:00:05]} 38. Qe5+ {[%clk 0:01:30]} 1-0


[Site "https://www.chess.com"]